fUSD/lending_fUSD_20260319
["ID","MTS","AMOUNT","RATE_DAILY","PERIOD"]
[408614178,1773952233720,-21129.37467851,0.00011099,2]
[408614179,1773952233735,-1000.0,0.00011139,2]
[408614180,1773952233746,-21129.37467851,0.00011278,2]
[408614181,1773952233760,-979.16666667,0.0001136,2]
[408614182,1773952233771,-160.0,0.0001136,2]
[408614183,1773952233781,-160.0,0.0001136,2]
[408614184,1773952233791,-508.20053368,0.0001137,2]
[408614185,1773952233802,-6339.85,0.00012055,2]
[408614186,1773952233812,-179.22837698,0.00012214,2]
[408614187,1773952233823,-21129.37467851,0.00012224,2]
[408614188,1773952233834,-504.87,0.00012329,2]
[408614189,1773952233845,-8129.79855411,0.00012388,2]
[408614190,1773952233856,-21129.37467851,0.0001317,2]
[408614191,1773952233869,-507.0,0.000133,2]
[408614192,1773952233878,-732.0,0.00013483,2]
[408614193,1773952233888,-732.0,0.00013543,2]
[408614194,1773952233898,-732.0,0.00013627,2]
[408614195,1773952233908,-732.0,0.00013643,2]
[408614196,1773952233917,-732.0,0.00013679,2]
[408614197,1773952233928,-246.0894193,0.00013698,2]
[408614198,1773952233938,-560.84,0.00013699,2]
[408614199,1773952233948,-200.0,0.00013699,2]
[408614200,1773952233958,-420.0,0.000137,5]
[408614201,1773952233967,-168.68,0.000137,2]
[408614202,1773952233977,-538.82,0.000137,2]
[408614203,1773952233987,-370.71,0.000137,2]
[408614204,1773952233997,-741.48,0.000137,2]
[408614205,1773952234006,-10454.76552253,0.000137,2]
[408614206,1773952234020,-577.10754383,0.000137,2]
[408614207,1773952234032,-723.749995,0.000137,2]
[408614208,1773952234048,-460.51348595,0.000137,2]
[408614209,1773952234060,-831.64957871,0.000137,2]
[408614210,1773952234071,-491.38023017,0.000137,2]
[408614211,1773952234084,-1691.0474998,0.000137,2]
[408614213,1773952238250,-5486.62137138,9.386e-05,2]
[408614214,1773952238360,-670.48004675,9.386e-05,2]
[408614215,1773952238416,-604.38138187,9.386e-05,2]
[408614216,1773952238426,-1280.06032938,0.000137,2]
[408614217,1773952238438,-236852.99581463,0.000137,2]
[408614218,1773952238448,-732.0,0.00013706,2]
[408614219,1773952238458,-732.0,0.00013727,2]
[408614220,1773952238468,-164.440573,0.00013757,7]
[408614221,1773952238477,-212.374973,0.00013757,7]
[408614223,1773952238487,-732.0,0.00013774,2]
[408614225,1773952238496,-732.0,0.00013807,2]
[408614227,1773952238504,-8129.79855411,0.00013813,2]
[408614229,1773952238514,-732.0,0.00013818,2]
[408614231,1773952238523,-620.0,0.00013818,2]
[408614233,1773952238533,-1344.0,0.00013818,2]
[408614235,1773952238543,-224.130594,0.00013877,7]
[408614237,1773952238552,-273.858487,0.00013877,7]
[408614239,1773952238562,-160.0,0.00013877,7]
[408614241,1773952238571,-1000.0,0.000139,5]
[408614243,1773952238582,-732.0,0.00013914,2]
[408614245,1773952238591,-732.0,0.00013946,2]
[408614247,1773952238600,-228.215405,0.00013956,7]
[408614249,1773952238610,-1261.0,0.00014038,2]
[408614251,1773952238619,-732.0,0.00014074,2]
[408614253,1773952238628,-21129.37467851,0.00014116,2]
[408614255,1773952238638,-732.0,0.00014241,2]
[408614257,1773952238647,-732.0,0.00014291,2]
[408614259,1773952238656,-732.0,0.00014349,2]
[408614261,1773952238666,-560.84,0.00014384,2]
[408614263,1773952238675,-507.0,0.0001447,3]
[408614265,1773952238684,-159.0,0.000145,3]
[408614267,1773952238694,-157.0,0.000145,3]
[408614269,1773952238705,-732.0,0.0001457,2]
[408614271,1773952238714,-732.0,0.00014594,2]
[408614273,1773952238725,-732.0,0.00014597,2]
[408614275,1773952238734,-732.0,0.00014625,2]
[408614277,1773952238743,-732.0,0.00014626,2]
[408614279,1773952238754,-732.0,0.00014698,2]
[408614281,1773952238764,-732.0,0.00014701,2]
[408614283,1773952238773,-732.0,0.00014739,2]
[408614284,1773952238784,-1122.19819867,0.0001476,2]
[408614287,1773952238795,-732.0,0.00014818,2]
[408614288,1773952238805,-250.0,0.00015,2]
[408614291,1773952238814,-21129.37467851,0.00015062,2]
[408614292,1773952238824,-214.0,0.00015068,2]
[408614293,1773952238834,-560.84,0.00015068,2]
[408614295,1773952238844,-741.48,0.000151,2]
[408614297,1773952238853,-7753.59390112,0.00015139,2]
[408614298,1773952238863,-6416.75365194,0.000152,2]
[408614299,1773952238872,-5000.0,0.000152,2]
[408614300,1773952238881,-5000.0,0.000152,2]
[408614301,1773952238891,-5000.0,0.000152,2]
[408614302,1773952238900,-5000.0,0.000152,2]
[408614303,1773952238909,-168.68,0.000152,2]
[408614304,1773952238919,-538.82,0.000152,2]
[408614305,1773952238929,-370.71,0.000152,2]
[408614306,1773952238939,-253363.27,0.000152,2]
[408614307,1773952238948,-8129.79855411,0.00015239,2]
[408614308,1773952238957,-1095.13873392,0.00015263,2]
[408614309,1773952238967,-507.0,0.0001564,4]
[408614310,1773952238976,-7753.59390111,0.00015691,2]
[408614311,1773952238985,-560.84,0.00015753,2]
[408614312,1773952238995,-2000.0,0.0001589,2]
[408614313,1773952239004,-272.86045904,0.000159,2]
[408614314,1773952239013,-272.86045903,0.000159,2]
[408614315,1773952239022,-272.86045903,0.000159,2]
[408614316,1773952239033,-272.86045903,0.000159,2]
[408614317,1773952239042,-272.86045903,0.000159,2]
[408614318,1773952239052,-272.86045903,0.000159,2]
[408614319,1773952239062,-272.86045903,0.000159,2]
[408614320,1773952239071,-272.86045903,0.000159,2]
[408614321,1773952239080,-272.86045903,0.000159,2]
[408614322,1773952239090,-272.86045903,0.000159,2]
[408614323,1773952239100,-272.86045903,0.000159,2]
[408614324,1773952239109,-272.86045903,0.000159,2]
[408614325,1773952239118,-272.86045903,0.000159,2]
[408614326,1773952239128,-272.86045903,0.000159,2]
[408614327,1773952239137,-272.86045903,0.000159,2]
[408614328,1773952239148,-556.29819632,0.000159,2]
[408614329,1773952239158,-2000.0,0.00016,2]
[408614330,1773952239167,-203.80623434,0.00016,2]
[408614331,1773952239176,-214.0,0.00016007,2]
[408614332,1773952239185,-21129.37467851,0.00016008,2]
[408614333,1773952239195,-2000.0,0.000161,2]
[408614334,1773952239203,-203.80623434,0.000161,2]
[408614335,1773952239214,-500.0,0.000161,2]
[408614336,1773952239223,-272.86045903,0.00016108,2]
[408614337,1773952239234,-2000.0,0.000162,2]
[408614338,1773952239244,-7753.59390111,0.00016243,2]
[408614339,1773952239253,-768.0,0.00016438,5]
[408614340,1773952239263,-252.86,0.00016438,2]
[408614341,1773952239272,-526.9,0.00016438,2]
[408614342,1773952239282,-202.49865762,0.00016438,2]
[408614343,1773952239291,-500.0,0.00016438,2]
[408614344,1773952239300,-500.0,0.00016438,2]
[408614345,1773952239309,-500.0,0.00016438,2]
[408614346,1773952239318,-500.0,0.00016438,2]
[408614347,1773952239327,-500.0,0.00016438,2]
[408614348,1773952239337,-500.0,0.00016438,2]
[408614349,1773952239347,-500.0,0.00016438,2]
[408614350,1773952239356,-500.0,0.00016438,2]
[408614351,1773952239365,-558.80287197,0.00016438,2]
[408614352,1773952239375,-560.84,0.00016438,2]
[408614353,1773952239383,-438.89,0.00016519,2]
[408614354,1773952239395,-438.91365876,0.00016521,2]
[408614355,1773952239406,-272.86045903,0.00016556,2]
[408614356,1773952239417,-500.0,0.00016634,4]
[408614357,1773952239426,-500.0,0.00016634,4]
[408614358,1773952239435,-8565.75555911,0.00016634,4]
[408614359,1773952239444,-500.0,0.00016634,4]
[408614360,1773952239454,-8882.6885148,0.00016634,4]
[408614361,1773952239463,-500.0,0.00016634,4]
[408614362,1773952239472,-9211.34798985,0.00016634,4]
[408614363,1773952239481,-500.0,0.00016634,4]
[408614364,1773952239490,-9552.16786547,0.00016634,4]
[408614365,1773952239500,-562.34804496,0.00016634,4]
[408614366,1773952239510,-9905.5980765,0.00016634,4]
[408614367,1773952239519,-10272.10520533,0.00016634,4]
[408614368,1773952239529,-10652.17309792,0.00016634,4]
[408614369,1773952239538,-11046.30350255,0.00016634,4]
[408614370,1773952239548,-500.0,0.00016634,4]
[408614371,1773952239557,-11455.01673214,0.00016634,4]
[408614372,1773952239566,-151.0,0.00016634,4]
[408614373,1773952239576,-8419.0964117,0.00016634,4]
[408614374,1773952239585,-151.0,0.00016634,4]
[408614375,1773952239594,-151.0,0.00016634,4]
[408614376,1773952239603,-250.0,0.00016634,4]
[408614377,1773952239612,-250.0,0.00016634,4]
[408614378,1773952239622,-250.0,0.00016634,4]
[408614379,1773952239630,-250.0,0.00016634,4]
[408614380,1773952239640,-250.0,0.00016634,4]
[408614381,1773952239649,-250.0,0.00016634,4]
[408614382,1773952239658,-250.0,0.00016634,4]
[408614383,1773952239668,-250.0,0.00016634,4]
[408614384,1773952239677,-250.0,0.00016634,4]
[408614385,1773952239686,-250.0,0.00016634,4]
[408614386,1773952239695,-250.0,0.00016634,4]
[408614387,1773952239704,-250.0,0.00016634,4]
[408614388,1773952239713,-250.0,0.00016634,4]
[408614389,1773952239722,-250.0,0.00016634,4]
[408614390,1773952239732,-152.675085,0.00016634,2]
[408614391,1773952239741,-151.0,0.00016641,2]
[408614392,1773952239751,-500.0,0.00016643,2]
[408614393,1773952239764,-500.0,0.00016643,2]
[408614394,1773952239773,-722.9962178,0.00016644,2]
[408614395,1773952239783,-536468.4386903,0.00016644,2]
[408614396,1773952239791,-14414.5820748,0.00016644,2]
[408614397,1773952239804,-151.0,0.00016644,2]
[408614398,1773952239813,-151.0,0.00016644,2]
[408614399,1773952239824,-151.0,0.00016644,2]
[408614400,1773952239834,-151.0,0.00016644,2]
[408614401,1773952239844,-151.0,0.00016644,2]
[408614402,1773952239854,-151.0,0.00016644,2]
[408614403,1773952239863,-151.0,0.00016644,2]
[408614404,1773952239873,-151.0,0.00016644,2]
[408614405,1773952239882,-151.0,0.00016644,2]
[408614406,1773952239891,-151.0,0.00016644,2]
[408614407,1773952239900,-151.0,0.00016644,2]
[408614408,1773952239909,-151.0,0.00016644,2]
[408614409,1773952239921,-151.0,0.00016644,2]
[408614410,1773952239932,-8129.79855411,0.00016664,2]
[408614411,1773952239941,-7753.59390111,0.00016796,2]
[408614412,1773952239951,-1500.0,0.000168,6]
[408614413,1773952239960,-507.0,0.00016811,5]
[408614414,1773952239970,-157.0,0.00016813,3]
[408614415,1773952239979,-526.9,0.00016817,2]
[408614416,1773952239988,-620.0,0.00016818,2]
[408614417,1773952239997,-1344.0,0.00016818,2]
[408614418,1773952240006,-2100.0,0.000169,6]
[408614419,1773952240015,-161.5334,0.0001693,2]
[408614420,1773952240025,-161.5334,0.0001693,2]
[408614421,1773952240035,-21129.37467851,0.00016954,2]
[408614422,1773952240044,-300.0,0.00017,2]
[408614423,1773952240053,-741.48,0.00017,2]
[408614424,1773952240063,-272.86045903,0.00017004,2]
[408614426,1773952240073,-1261.0,0.00017038,2]
[408614427,1773952240083,-216.37,0.00017096,2]
[408614428,1773952240095,-13842.51854774,0.000171,2]
[408614429,1773952240107,-151.0,0.000171,2]
[408614430,1773952240116,-252.24761161,0.000171,2]
[408614431,1773952240126,-995.3363169,0.00017119,3]
[408614432,1773952240135,-500.0,0.00017173,2]
[408614433,1773952240144,-526.9,0.00017195,2]
[408614434,1773952240153,-253363.27,0.000172,2]
[408614435,1773952240162,-500.0,0.00017309,2]
[408614436,1773952240171,-2402.0,0.0001733,2]
[408614437,1773952240181,-7753.59390111,0.00017348,2]
[408614438,1773952240190,-538.82,0.000174,2]
[408614439,1773952240201,-370.71,0.000174,2]
[408614440,1773952240211,-345.0,0.00017446,2]
[408614441,1773952240220,-577.0,0.00017446,2]
[408614442,1773952240228,-272.86045903,0.00017452,2]
[408614443,1773952240239,-526.9,0.00017573,2]
[408614444,1773952240248,-2600.0,0.000178,6]
[408614445,1773952240258,-298.0,0.00017806,2]
[408614446,1773952240267,-800.0,0.00017808,2]
[408614447,1773952240277,-155.0,0.00017811,2]
[408614448,1773952240286,-896.92103448,0.00017899,2]
[408614449,1773952240296,-7015.7843,0.000179,2]
[408614450,1773952240308,-10000.0,0.000179,2]
[408614451,1773952240317,-500.0,0.000179,6]
[408614452,1773952240326,-272.86045903,0.000179,2]
[408614453,1773952240335,-21129.37467851,0.000179,2]
[408614454,1773952240345,-899.72919306,0.000179,3]
[408614455,1773952240354,-26666.75731983,0.000179,2]
[408614456,1773952240363,-196.24174896,0.000179,2]
[408614457,1773952240372,-7753.59390111,0.000179,2]
[408614458,1773952240381,-526.9,0.00017952,2]
[408614459,1773952240390,-507.0,0.00017981,6]
[408614460,1773952240400,-179.22837698,0.0001799,2]
[408614461,1773952240409,-179.22837698,0.0001799,2]
[408614462,1773952240418,-500.0,0.00017999,2]
[408614463,1773952240427,-500.0,0.00017999,2]
[408614464,1773952240436,-500.0,0.00017999,2]
[408614465,1773952240446,-500.0,0.00017999,2]
[408614466,1773952240455,-500.0,0.00017999,2]
[408614467,1773952240464,-500.0,0.00017999,2]
[408614468,1773952240473,-500.0,0.00017999,2]
[408614469,1773952240483,-500.0,0.00017999,2]
[408614470,1773952240492,-500.0,0.00017999,2]
[408614471,1773952240502,-500.0,0.00017999,2]
[408614472,1773952240511,-500.0,0.00017999,2]
[408614473,1773952240521,-500.0,0.00017999,2]
[408614474,1773952240530,-500.0,0.00017999,2]
[408614475,1773952240539,-500.0,0.00017999,2]
[408614476,1773952240549,-500.0,0.00017999,2]
[408614477,1773952240558,-500.0,0.00017999,2]
[408614478,1773952240568,-500.0,0.00017999,2]
[408614479,1773952240577,-500.0,0.00017999,2]
[408614480,1773952240586,-500.0,0.00017999,2]
[408614481,1773952240595,-500.0,0.00017999,2]
[408614482,1773952240604,-500.0,0.00017999,2]
[408614483,1773952240613,-500.0,0.00017999,2]
[408614484,1773952240622,-500.0,0.00017999,2]
[408614485,1773952240632,-500.0,0.00017999,2]
[408614486,1773952240641,-500.0,0.00017999,2]
[408614487,1773952240651,-500.0,0.00017999,2]
[408614488,1773952240660,-500.0,0.00017999,2]
[408614489,1773952240669,-500.0,0.00017999,2]
[408614490,1773952240678,-500.0,0.00017999,2]
[408614491,1773952240687,-500.0,0.00017999,2]
[408614492,1773952240696,-500.0,0.00017999,2]
[408614493,1773952240705,-500.0,0.00017999,2]
[408614494,1773952240897,-500.0,0.00017999,2]
[408614495,1773952240907,-500.0,0.00017999,2]
[408614496,1773952240917,-500.0,0.00017999,2]
[408614497,1773952240926,-500.0,0.00017999,2]
[408614498,1773952240935,-500.0,0.00017999,2]
[408614499,1773952240944,-500.0,0.00017999,2]
[408614500,1773952240954,-500.0,0.00017999,2]
[408614501,1773952240963,-449.08995578,0.00017999,2]
[408614502,1773952240972,-150.0,0.00017999,2]
[408614503,1773952240981,-227.93385155,0.00017999,2]
[408614504,1773952240990,-274455.44838822,0.00018,2]
[408614505,1773952241078,-361.22993896,0.00013818,2]
[408614506,1773952241090,-3150.77006104,0.00013818,2]
[408614507,1773952241099,-1395.13839343,0.00018,2]
[408614527,1773952243500,-703.67778997,0.00016818,2]
[408614543,1773952246183,-242.435783,0.00013834,7]
[408614544,1773952246193,-547.460072,0.00016818,2]
[408614545,1773952246291,-379.12940536,0.00016817,2]
[408614550,1773952334466,400.0,8.9e-05,3]
[408614551,1773952336585,800.0,9e-05,3]
[408614552,1773953224524,400.0,8.9e-05,3]
[408614553,1773953226620,900.0,9e-05,3]
[408614563,1773953431396,-300.0,8.557e-05,2]
[408614564,1773953431406,-1200.0,8.557e-05,2]
[408614565,1773953431415,-221.0,8.557e-05,2]
[408614566,1773953431424,-5000.0,8.558e-05,2]
[408614567,1773953431434,-699.22377631,8.558e-05,2]
[408614568,1773953431444,-101972.0352,8.558e-05,2]
[408614569,1773953431452,-699.22377631,8.587e-05,2]
[408614570,1773953431461,-5000.0,8.616e-05,2]
[408614571,1773953431470,-300.0,8.655e-05,2]
[408614572,1773953431479,-5000.0,8.656e-05,2]
[408614573,1773953431488,-250.0,8.656e-05,2]
[408614574,1773953431497,-21697.5744777,8.657e-05,2]
[408614575,1773953431512,-951.09995283,8.657e-05,2]
[408614576,1773953431526,-316.11449079,8.657e-05,2]
[408614577,1773953431537,-1075.43,8.657e-05,2]
[408614578,1773953431548,-1969.9903863,8.657e-05,2]
[408614579,1773953431565,-675.0,8.657e-05,2]
[408614587,1773953437483,-699.22377631,8.616e-05,2]
[408614588,1773953437492,-51993.01524457,8.657e-05,2]
[408614589,1773953437503,-15501.73064781,8.657e-05,2]
[408614590,1773953437512,-150.0,8.657e-05,2]
[408614591,1773953437521,-1535.30912326,8.658e-05,2]
[408614592,1773953437532,-654.6,8.658e-05,2]
[408614593,1773953437622,-1963.87887674,8.658e-05,2]
[408614594,1773953437631,-180.128,8.658e-05,2]
[408614595,1773953437640,-6665.30790525,8.658e-05,2]
[408614596,1773953437649,-2500.0,8.658e-05,2]
[408614597,1773953437659,-43698.27812366,8.757e-05,2]
[408614598,1773953437668,-582.18412583,8.757e-05,2]
[408614599,1773953437677,-500.0,8.757e-05,2]
[408614600,1773953437687,-500.0,8.757e-05,2]
[408614601,1773953437700,-500.0,8.757e-05,2]
[408614602,1773953437710,-500.0,8.757e-05,2]
[408614603,1773953437722,-500.0,8.757e-05,2]
[408614604,1773953437735,-500.0,8.757e-05,2]
[408614605,1773953437746,-500.0,8.757e-05,2]
[408614606,1773953437758,-500.0,8.757e-05,2]
[408614607,1773953437770,-500.0,8.757e-05,2]
[408614608,1773953437781,-500.0,8.757e-05,2]
[408614610,1773953437790,-500.0,8.757e-05,2]
[408614612,1773953437802,-500.0,8.757e-05,2]
[408614613,1773953437812,-500.0,8.757e-05,2]
[408614614,1773953437824,-500.0,8.757e-05,2]
[408614615,1773953437834,-500.0,8.757e-05,2]
[408614616,1773953437846,-500.0,8.757e-05,2]
[408614617,1773953437858,-500.0,8.757e-05,2]
[408614618,1773953437869,-500.0,8.757e-05,2]
[408614619,1773953437881,-500.0,8.757e-05,2]
[408614620,1773953437892,-500.0,8.757e-05,2]
[408614621,1773953437903,-500.0,8.757e-05,2]
[408614622,1773953437915,-500.0,8.757e-05,2]
[408614623,1773953437926,-500.0,8.757e-05,2]
[408614624,1773953437936,-500.0,8.757e-05,2]
[408614625,1773953437946,-500.0,8.757e-05,2]
[408614626,1773953437956,-500.0,8.757e-05,2]
[408614627,1773953437966,-500.0,8.757e-05,2]
[408614628,1773953437975,-500.0,8.757e-05,2]
[408614629,1773953437985,-500.0,8.757e-05,2]
[408614630,1773953437996,-500.0,8.757e-05,2]
[408614631,1773953438008,-539.04631759,8.757e-05,2]
[408614632,1773953438018,-500.0,8.757e-05,2]
[408614633,1773953438031,-500.0,8.757e-05,2]
[408614634,1773953438044,-500.0,8.757e-05,2]
[408614635,1773953438060,-500.0,8.757e-05,2]
[408614636,1773953438071,-500.0,8.757e-05,2]
[408614637,1773953438082,-500.0,8.757e-05,2]
[408614638,1773953438095,-500.0,8.757e-05,2]
[408614639,1773953438106,-500.0,8.757e-05,2]
[408614640,1773953438117,-500.0,8.757e-05,2]
[408614641,1773953438129,-500.0,8.757e-05,2]
[408614642,1773953438139,-400.0,8.757e-05,2]
[408614643,1773953438150,-500.0,8.757e-05,2]
[408614644,1773953438161,-500.0,8.757e-05,2]
[408614645,1773953438173,-500.0,8.757e-05,2]
[408614646,1773953438186,-446.03484804,8.757e-05,2]
[408614647,1773953438197,-1541.29,8.757e-05,2]
[408614648,1773953438208,-150.99,8.757e-05,2]
[408614649,1773953438219,-8603.13,8.757e-05,2]
[408614650,1773953438231,-1533.27,8.757e-05,2]
[408614651,1773953438244,-299.99,8.757e-05,2]
[408614652,1773953438255,-150.99,8.757e-05,2]
[408614653,1773953438266,-9999.99,8.757e-05,2]
[408614654,1773953438279,-250.0,8.814e-05,2]
[408614655,1773953438289,-500.0,8.979e-05,2]
[408614656,1773953438300,-159.0,9e-05,3]
[408614657,1773953438311,-157.0,9e-05,3]
[408614658,1773953438324,-500.0,9.054e-05,2]
[408614659,1773953438334,-922.0,9.208e-05,2]
[408614660,1773953438345,-1979.55,9.33e-05,2]
[408614661,1773953438356,-32974.6857,9.387e-05,2]
[408614662,1773953438366,-5000.0,9.413e-05,2]
[408614663,1773953438377,-1200.0,9.413e-05,2]
[408614664,1773953438388,-250.0,9.521e-05,2]
[408614665,1773953438398,-5000.0,9.521e-05,2]
[408614666,1773953438408,-250.0,9.521e-05,2]
[408614667,1773953438418,-420.0,9.521e-05,2]
[408614668,1773953438428,-9999.99,9.67e-05,2]
[408614669,1773953438437,-14516.51,9.67e-05,2]
[408614670,1773953438449,-2000.0,9.676e-05,2]
[408614671,1773953438461,-2544.42820728,0.0001,2]
[408614672,1773953438475,-5413.94203,0.0001,2]
[408614673,1773953438485,-6623.08570519,0.0001,2]
[408614674,1773953438495,-6018.51386754,0.0001,2]
[408614675,1773953438506,-6263.23500533,0.0001,2]
[408614676,1773953438515,-206.30685265,0.0001,2]
[408614677,1773953438525,-152.41260405,0.0001,2]
[408614678,1773953438534,-156.38376527,0.0001,2]
[408614679,1773953438545,-157.24097434,0.0001,2]
[408614680,1773953438555,-157.72996913,0.0001,2]
[408614681,1773953438566,-151.0,0.0001,2]
[408614682,1773953438578,-151.0,0.0001,2]
[408614683,1773953438589,-151.0,0.0001,2]
[408614684,1773953438600,-151.0,0.0001,2]
[408614685,1773953438611,-500.0,0.00010196,2]
[408614686,1773953438626,-455.09,0.00010719,2]
[408614687,1773953438636,-2000.0,0.00010886,2]
[408614688,1773953438645,-5108.76615319,0.000109,2]
[408614689,1773953438655,-5108.76615319,0.000109,2]
[408614690,1773953438665,-10594.63030769,0.00011099,2]
[408614691,1773953438675,-10594.63030764,0.00011099,2]
[408614692,1773953438686,-10594.63030764,0.00011099,2]
[408614693,1773953438696,-5108.76615319,0.00011339,2]
[408614694,1773953438706,-250.0,0.00011436,2]
[408614695,1773953438716,-979.16666667,0.00011566,2]
[408614696,1773953438729,-160.0,0.00011566,2]
[408614697,1773953438739,-10594.63030764,0.00011776,2]
[408614698,1773953438749,-157.0,0.00012,3]
[408614699,1773953438759,-455.09,0.00012059,2]
[408614700,1773953438770,-2601.65,0.00012092,2]
[408614701,1773953438781,-2000.0,0.00012095,2]
[408614702,1773953438791,-5108.76615319,0.00012651,2]
[408614703,1773953438801,-10594.63030764,0.00012797,2]
[408614704,1773953438812,-507.0,0.000133,2]
[408614705,1773953438822,-2000.0,0.00013305,2]
[408614706,1773953438833,-206.30685263,0.00013307,2]
[408614707,1773953438845,-455.09,0.00013399,2]
[408614708,1773953438856,-186.9,0.00013699,2]
[408614709,1773953438867,-10594.63030764,0.00013817,2]
[408614710,1773953438877,-500.0,0.00013873,2]
[408614711,1773953438889,-168.67,0.000139,2]
[408614712,1773953438900,-333.64,0.000139,2]
[408614713,1773953438912,-484.93,0.000139,2]
[408614714,1773953438923,-279680.26,0.000139,2]
[408614715,1773953438935,-1300.0,0.000139,5]
[408614716,1773953438946,-5108.76615319,0.00013963,2]
[408614717,1773953438956,-504.87765582,0.00014421,2]
[408614718,1773953438967,-6416.75365194,0.0001444,2]
[408614719,1773953438978,-5000.0,0.0001444,2]
[408614720,1773953438988,-5000.0,0.0001444,2]
[408614721,1773953438998,-5000.0,0.0001444,2]
[408614722,1773953439008,-5000.0,0.0001444,2]
[408614723,1773953439019,-507.0,0.00014491,3]
[408614724,1773953439029,-2000.0,0.00014514,2]
[408614725,1773953439040,-455.09,0.00014739,2]
[408614726,1773953439052,-10594.63030764,0.00014838,2]
[408614727,1773953439063,-1344.0,0.00014898,2]
[408614728,1773953439073,-3512.0,0.00014898,2]
[408614729,1773953439083,-620.0,0.00014898,2]
[408614730,1773953439094,-782.435,0.00014898,2]
[408614731,1773953439105,-1261.0,0.00014898,2]
[408614732,1773953439115,-414.0,0.00014898,2]
[408614733,1773953439126,-3758.0,0.00014898,2]
[408614734,1773953439136,-250.0,0.00015,2]
[408614735,1773953439148,-157.0,0.00015,3]
[408614736,1773953439159,-485.0,0.0001502,5]
[408614737,1773953439169,-391.0,0.0001502,5]
[408614738,1773953439180,-599.0,0.00015028,2]
[408614739,1773953439190,-599.0,0.00015042,2]
[408614740,1773953439201,-214.0,0.00015068,2]
[408614741,1773953439211,-599.0,0.00015069,2]
[408614742,1773953439221,-1095.13873392,0.00015273,2]
[408614743,1773953439232,-5108.76615319,0.00015275,2]
[408614744,1773953439242,-599.0,0.000153,2]
[408614745,1773953439253,-599.0,0.0001535,2]
[408614746,1773953439263,-599.0,0.00015449,2]
[408614747,1773953439273,-599.0,0.00015455,2]
[408614748,1773953439284,-1715.24,0.00015507,2]
[408614749,1773953439294,-599.0,0.00015574,2]
[408614750,1773953439305,-599.0,0.0001558,2]
[408614751,1773953439316,-507.0,0.00015682,4]
[408614752,1773953439326,-599.0,0.00015738,2]
[408614754,1773953439336,-361.663291,0.00015778,7]
[408614755,1773953439346,-172.537326,0.00015778,7]
[408614756,1773953439356,-270.714628,0.00015778,7]
[408614757,1773953439367,-228.568553,0.00015778,7]
[408614758,1773953439376,-599.0,0.00015797,2]
[408614759,1773953439387,-599.0,0.00015823,2]
[408614760,1773953439398,-599.0,0.00015835,2]
[408614761,1773953439408,-10594.63030764,0.00015859,2]
[408614762,1773953439419,-2402.0,0.0001586,2]
[408614763,1773953439431,-1715.24,0.00015895,2]
[408614764,1773953439442,-556.29819632,0.000159,2]
[408614765,1773953439452,-272.86045904,0.000159,2]
[408614766,1773953439462,-272.86045903,0.000159,2]
[408614767,1773953439472,-272.86045903,0.000159,2]
[408614768,1773953439482,-272.86045903,0.000159,2]
[408614769,1773953439492,-272.86045903,0.000159,2]
[408614770,1773953439504,-599.0,0.00015921,2]
[408614771,1773953439514,-2000.0,0.00016,2]
[408614772,1773953439525,-203.80623434,0.00016,2]
[408614774,1773953439535,-599.0,0.00016011,2]